fUSD/lending_fUSD_20240722
["ID","MTS","AMOUNT","RATE_DAILY","PERIOD"]
[332891078,1721640633200,-471.90589686,0.0001175,2]
[332891079,1721640633211,-500.0,0.0001175,2]
[332891080,1721640633221,-500.0,0.00011759,2]
[332891081,1721640633230,-500.0,0.00011768,2]
[332891082,1721640633240,-471.90589686,0.00011775,2]
[332891083,1721640633250,-500.0,0.00011777,2]
[332891084,1721640633259,-2500.0,0.0001178,2]
[332891085,1721640633269,-500.0,0.00011786,2]
[332891086,1721640633279,-415.96032386,0.0001179,2]
[332891087,1721640633288,-500.0,0.00011794,2]
[332891088,1721640633297,-188.54427075,0.000118,2]
[332891089,1721640633307,-5000.0,0.000118,2]
[332891090,1721640633317,-1000.0,0.000118,2]
[332891091,1721640633327,-52620.85999541,0.000118,2]
[332891092,1721640633348,-3725.14623216,0.000118,2]
[332891093,1721640633359,-679.83163208,0.000118,2]
[332891094,1721640633378,-42974.16214035,0.000118,2]
[332891095,1721640633388,-202.37217045,0.000118,2]
[332891096,1721640633397,-500.0,0.000118,2]
[332891097,1721640633407,-39812.06804076,0.000118,2]
[332891098,1721640633418,-315.0,0.000118,2]
[332891099,1721640633445,-1610.6,0.000118,2]
[332891100,1721640633479,-203262.33195924,0.000118,2]
[332891101,1721640633489,-12577.8517,0.000118,2]
[332891102,1721640633499,-706.2836,0.000118,2]
[332891103,1721640633508,-303.9361,0.000118,2]
[332891104,1721640633517,-165.28,0.000118,2]
[332891105,1721640633526,-471.90589686,0.000118,2]
[332891106,1721640633535,-6035.82861407,0.000118,2]
[332891107,1721640633544,-500.0,0.00011803,2]
[332891108,1721640633555,-500.0,0.00011805,2]
[332891109,1721640633564,-219.42,0.00011808,3]
[332891110,1721640633574,-174.43027,0.00011811,2]
[332891111,1721640633583,-500.0,0.00011812,2]
[332891112,1721640633593,-500.0,0.00011821,2]
[332891113,1721640633602,-500.0,0.0001183,2]
[332891114,1721640633611,-500.0,0.00011838,2]
[332891115,1721640633621,-500.0,0.00011847,2]
[332891116,1721640633630,-431.9273718,0.0001185,2]
[332891117,1721640633639,-202.63817161,0.0001185,2]
[332891118,1721640633649,-157.76751704,0.0001185,2]
[332891119,1721640633658,-500.0,0.00011856,2]
[332891120,1721640633667,-538.656728,0.00011859,2]
[332891121,1721640633677,-223.868134,0.00011859,2]
[332891122,1721640633686,-9952.71683,0.00011859,2]
[332891123,1721640633696,-8874.145678,0.00011859,2]
[332891124,1721640633707,-174.329746,0.00011859,2]
[332891125,1721640633716,-500.0,0.00011865,2]
[332891126,1721640633726,-500.0,0.00011874,2]
[332891127,1721640633736,-500.0,0.00011882,2]
[332891128,1721640633745,-415.96032386,0.0001189,2]
[332891129,1721640633755,-415.96032386,0.0001189,2]
[332891130,1721640633764,-500.0,0.00011891,2]
[332891131,1721640633774,-166.56905154,0.00011894,2]
[332891132,1721640633783,-342.13318843,0.00011896,2]
[332891133,1721640633792,-790.03749529,0.00011896,2]
[332891134,1721640633803,-155.0,0.00011896,2]
[332891135,1721640633812,-155.0,0.00011896,2]
[332891136,1721640633821,-46391.6683006,0.00011897,2]
[332891137,1721640633831,-3311.2010373,0.00011897,2]
[332891138,1721640633840,-1339.618319,0.00011897,2]
[332891139,1721640633849,-333.13810308,0.00011897,2]
[332891140,1721640633859,-337865.79012835,0.000119,2]
[332891141,1721640633871,-7762.6841841,0.000119,2]
[332891142,1721640633882,-15602.263051,0.000119,2]
[332891143,1721640633951,-1339.32568212,0.000119,2]
[332891144,1721640633967,-9231.37963767,0.000119,2]
[332891145,1721640633979,-474.46635641,0.000119,2]
[332891146,1721640633992,-447.53187127,0.000119,2]
[332891149,1721640638177,-431.9273718,0.00011525,2]
[332891150,1721640638187,-4459.9504231,0.00011897,2]
[332891151,1721640638196,-55308.61121181,0.000119,2]
[332891152,1721640638208,-78584.2278505,0.000119,2]
[332891153,1721640638219,-6470.20833297,0.000119,2]
[332891154,1721640638231,-413.27020903,0.000119,2]
[332891155,1721640638243,-1441.03869151,0.000119,2]
[332891156,1721640638254,-16075.72136431,0.000119,2]
[332891157,1721640638266,-1876.900965,0.000119,2]
[332891158,1721640638278,-4917.32752246,0.000119,2]
[332891159,1721640638289,-6016.27157419,0.000119,2]
[332891160,1721640638347,-28372.69788135,0.000119,2]
[332891161,1721640638359,-785.23100942,0.000119,2]
[332891162,1721640638375,-2067.86079862,0.000119,2]
[332891165,1721640639111,-648.10177974,0.000119,2]
[332891166,1721640639122,-2676.10473281,0.000119,2]
[332891167,1721640639133,-264.54053448,0.000119,2]
[332891168,1721640639144,-1019.83248483,0.000119,2]
[332891169,1721640639156,-332.57131004,0.000119,2]
[332891170,1721640639167,-1651.94935281,0.000119,2]
[332891171,1721640639178,-10852.37161413,0.000119,2]
[332891172,1721640639189,-1340.26476761,0.000119,2]
[332891173,1721640639200,-1258.28539142,0.000119,2]
[332891174,1721640639214,-17493.33481061,0.000119,2]
[332891175,1721640639225,-4283.63537498,0.000119,2]
[332891176,1721640639236,-616.34199997,0.000119,2]
[332891177,1721640639247,-847.007452,0.000119,2]
[332891178,1721640639257,-421.399227,0.000119,2]
[332891179,1721640639335,-484422.86170292,0.000119,2]
[332891180,1721640639347,-6525.06999584,0.000119,2]
[332891181,1721640639359,-1046.41637075,0.000119,2]
[332891182,1721640639375,-5340.98495427,0.000119,2]
[332891183,1721640639386,-251.60714365,0.000119,2]
[332891184,1721640639400,-2506.77543946,0.000119,2]
[332891185,1721640639411,-2604.69232305,0.000119,2]
[332891186,1721640639423,-7969.17193469,0.000119,2]
[332891187,1721640639434,-3386.27530717,0.000119,2]
[332891188,1721640639447,-7214.73959698,0.000119,2]
[332891189,1721640639460,-1145.08013776,0.000119,2]
[332891190,1721640639472,-11216.25702667,0.000119,2]
[332891191,1721640639529,-813.90015,0.000119,2]
[332891192,1721640639546,-899249.2064816,0.000119,2]
[332891193,1721640639557,-509.16789362,0.000119,2]
[332891195,1721640640485,-62618.99588654,0.000119,2]
[332891196,1721640640496,-45592.09806927,0.000119,2]
[332891197,1721640640531,-52877.57373107,0.000119,2]
[332891198,1721640640542,-513.75416854,0.000119,2]
[332891199,1721640640553,-476.45777715,0.000119,2]
[332891200,1721640640565,-95162.40699805,0.000119,2]
[332891201,1721640640576,-889.49999995,0.000119,2]
[332891203,1721640640587,-714.85,0.000119,2]
[332891204,1721640640598,-400.075,0.000119,2]
[332891205,1721640640621,-12724.28080776,0.000119,2]
[332891206,1721640640632,-6100.16620858,0.000119,2]
[332891207,1721640640663,-450388.50166523,0.000119,2]
[332891208,1721640640674,-1024.04984556,0.000119,2]
[332891209,1721640640685,-35306.54403993,0.000119,2]
[332891223,1721640643274,-1145.13779831,0.000119,2]
[332891224,1721640643285,-8422.24321387,0.000119,2]
[332891276,1721640646508,-471.654565,0.000119,2]
[332891278,1721640646519,-269.860644,0.000119,2]
[332891338,1721640669678,276.85,9.531e-05,2]
[332891344,1721640721873,300.0,0.000109,3]
[332891345,1721640723631,700.0,0.00011,4]
[332891346,1721640739122,6885.62560333,9.531e-05,2]
[332891347,1721640739145,10000.0,9.531e-05,2]
[332891348,1721640739167,10000.0,9.531e-05,2]
[332891349,1721640739190,10000.0,9.531e-05,2]
[332891350,1721640739213,10000.0,9.531e-05,2]
[332891351,1721640739237,4069.57875196,9.531e-05,2]
[332891353,1721640803019,250.0,0.00010959,2]
[332891354,1721641070673,2324.34,0.00010623,2]
[332891355,1721641092923,250.0,0.00010628,2]
[332891356,1721641100356,3106.08124804,0.00010628,2]
[332891357,1721641100380,10000.0,0.00010628,2]
[332891358,1721641100404,4241.16875196,0.00010628,2]
[332891359,1721641110910,2104.04570616,0.00011,2]
[332891366,1721641172382,1000.0,0.00010625,2]
[332891369,1721641240199,263.0,8.69e-05,2]
[332891370,1721641240431,263.0,0.00010954,2]
[332891372,1721641399246,250.0,0.00010959,2]
[332891373,1721641621023,300.0,0.000109,3]
[332891374,1721641621386,250.0,0.00010653,2]
[332891375,1721641623170,600.0,0.00011,4]
[332891376,1721641631039,728.78554188,0.00010653,2]
[332891377,1721641631062,10000.0,0.00010653,2]
[332891378,1721641631085,10000.0,0.00010653,2]
[332891379,1721641631107,2419.90445812,0.00010653,2]
[332891386,1721641825499,261.78,8.686e-05,2]
[332891387,1721641825569,261.78,0.00010949,2]
[332891406,1721641832412,-1192.910426,0.00011013,2]
[332891407,1721641832423,-150.0,0.00011068,2]
[332891408,1721641832432,-199.0809742,0.000111,4]
[332891409,1721641832507,-603.81700861,0.000111,4]
[332891410,1721641832565,-97.10201719,0.000111,4]
[332891411,1721641832575,-156.53166025,0.00011105,2]
[332891412,1721641832584,-790.03749529,0.00011105,2]
[332891413,1721641832593,-349.14572823,0.00011105,2]
[332891414,1721641832603,-1073.0035856,0.00011105,2]
[332891415,1721641832612,-22630.61502022,0.00011186,2]
[332891416,1721641832621,-1200.0,0.000112,4]
[332891417,1721641832631,-652.7940658,0.000113,4]
[332891418,1721641832643,-847.2059342,0.000113,4]
[332891419,1721641832652,-162.61885248,0.00011322,2]
[332891420,1721641832661,-255.0973448,0.000114,4]
[332891421,1721641832672,-44.9026552,0.000114,4]
[332891422,1721641832682,-150.0,0.00011429,2]
[332891423,1721641832692,-608.78919799,0.0001143,2]
[332891424,1721641832703,-945.20416181,0.0001143,2]
[332891425,1721641832715,-7489.6389632,0.0001143,2]
[332891426,1721641832725,-499.99,0.0001143,2]
[332891427,1721641832734,-670.6119,0.000115,2]
[332891428,1721641832744,-2681.9773,0.000115,2]
[332891429,1721641832753,-1801.29,0.000115,2]
[332891430,1721641832762,-300.0,0.000115,4]
[332891431,1721641832776,-500.0,0.00011566,2]
[332891432,1721641832785,-9043.632323,0.00011573,2]
[332891433,1721641832795,-500.0,0.00011574,2]
[332891434,1721641832805,-500.0,0.00011583,2]
[332891435,1721641832914,-500.0,0.00011592,2]
[332891436,1721641832925,-1000.0,0.000116,2]
[332891437,1721641832935,-500.0,0.000116,2]
[332891438,1721641832944,-245000.0,0.000116,2]
[332891439,1721641832954,-2044.8298,0.000116,2]
[332891440,1721641832964,-22591.4571,0.000116,2]
[332891441,1721641832973,-3967.029,0.000116,2]
[332891442,1721641832983,-300.0,0.000116,4]
[332891443,1721641832992,-500.0,0.00011601,2]
[332891444,1721641833002,-500.0,0.0001161,2]
[332891445,1721641833011,-500.0,0.00011618,2]
[332891446,1721641833020,-500.0,0.00011627,2]
[332891447,1721641833033,-500.0,0.00011636,2]
[332891448,1721641833043,-500.0,0.00011645,2]
[332891449,1721641833053,-500.0,0.00011654,2]
[332891450,1721641833063,-189.3426765,0.00011662,2]
[332891451,1721641833073,-500.0,0.00011662,2]
[332891452,1721641833083,-500.0,0.00011671,2]
[332891453,1721641833093,-500.0,0.0001168,2]
[332891454,1721641833103,-500.0,0.00011689,2]
[332891455,1721641833113,-500.0,0.00011698,2]
[332891456,1721641833123,-176.49176034,0.000117,2]
[332891457,1721641833132,-300.0,0.000117,4]
[332891458,1721641833142,-500.0,0.00011706,2]
[332891459,1721641833155,-500.0,0.00011715,2]
[332891460,1721641833164,-9043.632323,0.00011716,2]
[332891461,1721641833174,-500.0,0.00011724,2]
[332891462,1721641833184,-500.0,0.00011733,2]
[332891463,1721641833194,-2500.0,0.0001178,2]
[332891464,1721641833204,-2500.0,0.0001178,2]
[332891465,1721641833213,-33035.0,0.00011781,2]
[332891466,1721641833223,-3688.2073972,0.000118,2]
[332891467,1721641833233,-335.64873334,0.000118,2]
[332891468,1721641833243,-831.2133,0.000118,2]
[332891469,1721641833252,-365.34276033,0.000118,2]
[332891470,1721641833262,-5000.0,0.000118,2]
[332891471,1721641833272,-181.4307852,0.000118,2]
[332891472,1721641833282,-300.0,0.000118,4]
[332891473,1721641833292,-7500.0,0.000118,2]
[332891474,1721641833302,-4095.07533689,0.000118,2]
[332891475,1721641833312,-500.0,0.00011805,2]
[332891476,1721641833322,-220.81,0.00011808,2]
[332891477,1721641833332,-2500.0,0.0001182,2]
[332891478,1721641833342,-2473.58194,0.0001182,2]
[332891479,1721641833352,-12790.35705812,0.0001185,2]
[332891480,1721641833361,-9043.632323,0.00011859,2]
[332891481,1721641833371,-2500.0,0.0001186,2]
[332891482,1721641833380,-159.48243504,0.00011872,2]
[332891483,1721641833390,-3332.42635132,0.00011872,2]
[332891484,1721641833405,-169.14083102,0.0001189,2]
[332891485,1721641833415,-169.14083102,0.0001189,2]
[332891486,1721641833424,-5207.5971901,0.00011894,2]
[332891487,1721641833433,-1184.1110093,0.00011894,2]
[332891488,1721641833443,-2135.8456722,0.00011897,2]
[332891489,1721641833452,-44641.7696582,0.00011897,2]
[332891490,1721641833461,-194.46755102,0.00011897,2]
[332891491,1721641833471,-211.40172643,0.00011899,2]
[332891492,1721641833480,-468.46960224,0.00011899,2]
[332891493,1721641833490,-1848.435909,0.00011899,2]
[332891494,1721641833499,-6476.7220164,0.00011899,2]
[332891495,1721641833509,-393231.843622,0.000119,2]
[332891496,1721641833534,-479.02536476,0.000119,2]
[332891516,1721641838489,-355.81371396,0.000119,2]
[332891517,1721641838730,-670811.74328844,0.000119,2]
[332891518,1721641838742,-1264.43557993,0.000119,2]
[332891519,1721641838753,-544.38170658,0.000119,2]
[332891520,1721641838765,-4330.98887818,0.000119,2]
[332891521,1721641838792,-2644.17619719,0.000119,2]
[332891572,1721641840351,-25404.0,0.000119,2]
[332891573,1721641840417,-3690.6666,0.000119,2]
[332891574,1721641840578,-2021.6671208,0.000119,2]
[332891575,1721641840589,-2205.56433355,0.000119,2]
[332891576,1721641840601,-654.35604562,0.000119,2]
[332891577,1721641840613,-352319.69631359,0.000119,2]
[332891578,1721641840633,-1822.09764027,0.000119,2]
[332891579,1721641840669,-24437.1075661,0.000119,2]
[332891580,1721641840681,-29254.26133491,0.000119,2]
[332891656,1721641843440,-14133.03322204,0.00011618,2]
[332891657,1721641843450,-234.23480112,0.00011899,2]
[332891658,1721641843460,-12386.73330479,0.000119,2]
[332891659,1721641843472,-116603.74460842,0.000119,2]
[332891660,1721641843672,-33370.9992239,0.000119,2]
[332891661,1721641843709,-8900.34324644,0.000119,2]
[332891662,1721641843752,-45912.34257846,0.000119,2]
[332891663,1721641843764,-10942.3593381,0.000119,2]
[332891664,1721641843779,-574.42355092,0.000119,2]
[332891665,1721641843806,-329.70014336,0.000119,2]
[332891805,1721641846246,1000.0,0.00024,60]
[332891835,1721641846592,-1208.0,0.000119,2]
[332891837,1721641846604,-500.0,0.000119,2]
[332891838,1721641846681,-587.65228537,0.000119,2]
[332891839,1721641846756,-5910.65315546,0.000119,2]
[332891855,1721641885790,400.0,0.000109,3]
[332891856,1721641887860,800.0,0.00011,4]
[332891857,1721641896134,451.31,0.00010943,2]
[332891858,1721641915448,5055.5879,0.00010968,2]
[332891860,1721641942476,248.15,0.00010815,2]
[332891861,1721641969324,101.48764188,0.00010959,2]
[332891862,1721641969347,148.51235812,0.00010959,2]
[332891863,1721641972107,208.0,0.00025,120]
[332891864,1721642042987,200.0,0.00010785,2]
[332891865,1721642088918,250.0,0.00010768,2]
[332891866,1721642130060,155.40117997,0.00010768,2]
[332891867,1721642140229,291.58113767,0.00010785,2]
[332891868,1721642149865,159.0561062,0.00010768,2]
[332891869,1721642150723,202.4621365,0.00010768,2]
[332891870,1721642157874,300.12954062,0.00010768,2]
[332891871,1721642158338,331.78179922,0.00010768,2]
[332891872,1721642158820,155.32548195,0.00010768,2]
[332891873,1721642161958,201.15759853,0.00010768,2]
[332891874,1721642168303,1193.3789103,0.00010768,2]
[332891875,1721642176489,200.71025243,0.00010768,2]
[332891876,1721642178048,798.382599,0.00010768,2]
[332891878,1721642191315,155.44142731,0.00010768,2]
[332891881,1721642198007,155.16528501,0.00010768,2]
[332891883,1721642205372,250.0,0.00010768,2]
[332891885,1721642351452,4851.51418717,0.00010719,2]
[332891886,1721642351475,10000.0,0.00010719,2]
[332891887,1721642351500,9048.48581283,0.00010719,2]
[332891888,1721642368512,295.11,8.8e-05,2]
[332891889,1721642415488,202.50147638,0.00010666,2]
[332891890,1721642417312,453.90271079,0.00011,2]
[332891891,1721642469566,161.55,8.592e-05,2]
[332891893,1721642592515,169.15,8.518e-05,2]
[332891898,1721643002841,151.19903108,8.518e-05,2]
[332891930,1721643032027,-347.17091063,0.00010325,2]
[332891931,1721643032037,-159.82727271,0.00010325,2]
[332891932,1721643032047,-366.05039334,0.00010325,2]
[332891933,1721643032057,-521.82541979,0.00010325,2]
[332891934,1721643032067,-347.93601262,0.00010325,2]
[332891935,1721643032077,-242.65178278,0.00010414,2]
[332891936,1721643032087,-250.0,0.00010488,2]
[332891937,1721643032096,-1000.0,0.00010498,2]
[332891938,1721643032106,-170.57211546,0.00010845,2]
[332891939,1721643032117,-363.76455997,0.00010845,2]
[332891940,1721643032129,-247.41577357,0.00010845,2]
[332891941,1721643032139,-300.0,0.000109,3]
[332891942,1721643032149,-250.0,0.00010959,2]
[332891943,1721643032163,-138.20359603,0.00010998,2]
[332891944,1721643032265,-161.79640397,0.00010998,2]
[332891945,1721643032275,-622.54710689,0.00010999,2]
[332891946,1721643032287,-377.45289311,0.00010999,2]
[332891947,1721643032297,-200.0,0.00011,2]
[332891948,1721643032306,-700.0,0.00011,4]
[332891949,1721643032317,-295.11,0.00011064,2]
[332891950,1721643032326,-93.65377158,0.00011064,2]
[332891951,1721643032415,-57.33622842,0.00011064,2]
[332891952,1721643032425,-172.97,0.000111,2]
[332891953,1721643032435,-499.99,0.000111,2]
[332891954,1721643032445,-11.58487218,0.000111,4]
[332891955,1721643032456,-988.41512782,0.000111,4]
[332891956,1721643032465,-1071.73,0.00011104,2]
[332891957,1721643032475,-227.603284,0.00011105,2]
[332891958,1721643032486,-929.93204507,0.00011105,2]
[332891959,1721643032495,-159.4761085,0.00011105,2]
[332891960,1721643032505,-1658.65161604,0.00011105,2]
[332891961,1721643032516,-567.12177962,0.00011105,2]
[332891962,1721643032614,-2522.06617273,0.00011105,2]
[332891963,1721643032626,-5779.0080343,0.00011105,2]
[332891964,1721643032635,-1605.91753154,0.00011105,2]
[332891965,1721643032646,-619.65174307,0.00011105,2]
[332891966,1721643032883,-672.3424,0.00011105,2]
[332891967,1721643032895,-1407.48493725,0.00011105,2]
[332891968,1721643032907,-257.23433876,0.00011105,2]
[332891969,1721643032919,-747.70566124,0.00011105,2]
[332891970,1721643032931,-301.5280926,0.00011105,2]
[332891971,1721643032941,-2031.97892501,0.000112,2]
[332891972,1721643032953,-1016.60107499,0.000112,2]
[332891973,1721643032964,-1190.8029558,0.000112,4]
[332891974,1721643032976,-209.1970442,0.000112,4]
[332891975,1721643032985,-1115.9481958,0.000113,4]
[332891976,1721643032997,-684.0518042,0.000113,4]
[332891977,1721643033007,-2380.55484149,0.00011321,2]
[332891978,1721643033019,-1023.34353588,0.00011321,2]
[332891979,1721643033028,-585.60823088,0.00011322,2]
[332891980,1721643033039,-191.68647548,0.00011324,2]
[332891981,1721643033049,-150.0,0.00011383,2]
[332891982,1721643033059,-300.0,0.000114,4]
[332891983,1721643033070,-215.170748,0.0001143,2]
[332891984,1721643033081,-1000.0,0.00011449,2]
[332891985,1721643033091,-300.0,0.000115,4]
[332891986,1721643033101,-3.45274766,0.00011509,2]
[332891987,1721643033114,-383.09031334,0.00011509,2]
[332891988,1721643033125,-300.0,0.000116,4]
[332891989,1721643033135,-150.0,0.00011684,2]
[332891990,1721643033145,-150.0,0.00011687,2]
[332891991,1721643033160,-150.0,0.00011697,2]
[332891992,1721643033170,-300.0,0.000117,4]
[332891993,1721643033180,-150.0,0.00011716,2]
[332891994,1721643033191,-150.0,0.00011752,2]
[332891995,1721643033202,-167.157,0.0001176,2]
[332891996,1721643033212,-500.0,0.00011768,2]
[332891997,1721643033222,-280.55826002,0.00011773,2]
[332891998,1721643033232,-500.0,0.00011777,2]
[332891999,1721643033242,-500.0,0.00011786,2]
[332892000,1721643033252,-500.0,0.00011794,2]
[332892001,1721643033262,-1684.64487951,0.00011797,2]
[332892002,1721643033274,-6678.06297211,0.00011797,2]
[332892003,1721643033286,-5314.0001,0.00011797,2]
[332892004,1721643033307,-6683.26958659,0.00011797,2]
[332892005,1721643033319,-4130.4738439,0.00011797,2]
[332892006,1721643037835,-393.70703864,0.00010325,2]
[332892007,1721643037845,-191.68647548,0.00011322,2]
[332892008,1721643037855,-1158.11079625,0.00011797,2]
[332892155,1721643039642,-880.37172814,0.00011797,2]
[332892167,1721643039755,-329.94744348,0.00011797,2]
[332892169,1721643039766,-10924.52139956,0.00011797,2]
[332892172,1721643039787,-6886.15069189,0.00011797,2]
[332892314,1721643042769,-500.0,0.00011759,2]
[332892315,1721643042779,-23720.9355735,0.00011797,2]
[332892316,1721643042829,-20018.78375612,0.00011797,2]
[332892317,1721643042840,-262.36494019,0.00011797,2]
[332892318,1721643042874,-8510.14302949,0.00011797,2]
[332892319,1721643043033,-287.27544806,0.00011797,2]
[332892320,1721643043045,-4489.28689342,0.00011797,2]
[332892322,1721643045786,-269.936,0.00011797,2]
[332892323,1721643046176,-472.381,0.00011797,2]
[332892324,1721643050689,161.22,8.745e-05,2]
[332892325,1721643056480,151.0,0.00019946,120]
[332892327,1721643133499,169.15,8.701e-05,2]
[332892328,1721643219897,172.10920489,8.701e-05,2]
[332892329,1721643223182,299.7,8.915e-05,2]
[332892330,1721643227150,-2065.64,0.00013,30]
[332892331,1721643269330,291.0324454,8.701e-05,2]
[332892332,1721643461079,6000.0,0.00025,120]
[332892334,1721643599826,151.0,0.00020469,120]
[332892336,1721643737633,169.15,8.455e-05,2]
[332892337,1721643795229,327.38,8.635e-05,2]
[332892379,1721644232171,-499.04917572,0.00010246,2]
[332892380,1721644232180,-165.95157042,0.00010248,2]
[332892381,1721644232190,-499.04917572,0.00010297,2]
[332892382,1721644232200,-161.85860374,0.00010346,2]
[332892383,1721644232209,-499.04917572,0.00010347,2]
[332892384,1721644232219,-250.0,0.00010463,2]
[332892385,1721644232229,-150.0,0.00010465,2]
[332892386,1721644232238,-309.23887037,0.00010466,2]
[332892387,1721644232247,-491.78082466,0.00010466,2]
[332892388,1721644232257,-525.50769677,0.00010466,2]
[332892389,1721644232266,-409.69823254,0.00010466,2]
[332892390,1721644232275,-3657.69512847,0.00010466,2]
[332892391,1721644232285,-156.95175476,0.00010466,2]
[332892392,1721644232294,-207.28339575,0.00010466,2]
[332892393,1721644232304,-4341.03063077,0.00010466,2]
[332892394,1721644232474,-1155.98449246,0.00010466,2]
[332892395,1721644232486,-2250.40961984,0.00010466,2]
[332892396,1721644232495,-173.49998627,0.00010466,2]
[332892397,1721644232504,-155.50523814,0.00010466,2]
[332892398,1721644232514,-389.04344835,0.00010466,2]
[332892399,1721644232527,-535.61661034,0.00010466,2]
[332892400,1721644232628,-11884.21024311,0.00010466,2]
[332892401,1721644232639,-2179.1969421,0.00010466,2]
[332892402,1721644234218,-3644.52416557,0.00010466,2]
[332892403,1721644234229,-615.37362234,0.00010466,2]
[332892404,1721644234240,-11357.0,0.00010466,2]
[332892414,1721644237861,-13308.46648856,0.00010466,2]
[332892444,1721644240020,-33844.0807554,0.00010466,2]
[332892445,1721644240053,-568.51573474,0.00010466,2]
[332892446,1721644240072,-32941.12829027,0.00010466,2]
[332892466,1721644243027,-192.14261379,0.00010148,2]
[332892467,1721644243037,-274.32228601,0.00010466,2]
[332892470,1721644243618,-901.9,0.00010466,2]
[332892471,1721644243631,-675.69,0.00010466,2]
[332892472,1721644243710,-1298.70194724,0.00010466,2]
[332892473,1721644243722,-4675.74706937,0.00010466,2]
[332892474,1721644243733,-1038.38172289,0.00010466,2]
[332892476,1721644246187,-0.00227518,0.00010466,2]
[332892477,1721644246199,-698.75,0.00010466,2]
[332892478,1721644246210,-270.54273154,0.00010466,2]
[332892486,1721644401866,169.15,8.516e-05,2]
[332892491,1721644450886,9830.85,8.516e-05,2]
[332892492,1721644450909,10000.0,8.516e-05,2]
[332892493,1721644450933,10000.0,8.516e-05,2]
[332892494,1721644450956,3687.57627649,8.516e-05,2]
[332892495,1721644454915,396.1,8.726e-05,2]
[332892497,1721644979806,376.29,8.379e-05,2]
[332892513,1721645432111,-946.5561817,0.00010156,2]
[332892514,1721645432121,-376.94903729,0.00010156,2]
[332892515,1721645432130,-192.14261377,0.0001026,2]
[332892516,1721645432139,-305.37,0.00010268,2]
[332892517,1721645432148,-178.98216724,0.00010291,2]
[332892518,1721645432306,-1284.35585131,0.00010291,2]
[332892519,1721645432317,-726.72999162,0.00010291,2]
[332892520,1721645432328,-2194.55656055,0.00010291,2]
[332892521,1721645432339,-506.58096069,0.00010291,2]
[332892522,1721645432784,-781.03258899,0.00010291,2]
[332892523,1721645432796,-6211.0,0.00010291,2]
[332892524,1721645432824,-3049.89,0.00010291,2]
[332892526,1721645437993,-2462.52978647,0.00010291,2]
[332892527,1721645438004,-264.43385958,0.00010291,2]
[332892620,1721645440252,-1330.98013044,0.00010291,2]
[332892621,1721645440264,-2404.77292514,0.00010291,2]
[332892622,1721645440419,-1329.09517797,0.00010291,2]
[332892625,1721645440429,-250.0,0.00010292,2]
[332892628,1721645440438,-250.0,0.00010301,2]
[332892631,1721645440447,-192.14261377,0.00010463,2]
[332892633,1721645440456,-150.0,0.00010465,2]
[332892635,1721645440465,-181.44375561,0.00010466,2]
[332892636,1721645440474,-3000.0,0.00010466,2]
[332892637,1721645440483,-200.0,0.00010466,2]
[332892638,1721645440492,-155.0,0.00010466,2]
[332892639,1721645440501,-183.37349782,0.00010466,2]
[332892640,1721645440510,-264.43385958,0.00010466,2]
[332892641,1721645440520,-1444.51358906,0.00010466,2]
[332892642,1721645440529,-1473.3910067,0.00010546,2]
[332892643,1721645440538,-150.99,0.00010563,2]
[332892644,1721645440548,-200.0,0.00010571,2]
[332892645,1721645440557,-155.42227819,0.00010577,2]
[332892646,1721645440566,-201.36266663,0.00010577,2]
[332892647,1721645440576,-835.4681348,0.00010577,2]
[332892648,1721645440585,-270.55386233,0.00010577,2]
[332892649,1721645440599,-499.99,0.00010577,2]
[332892650,1721645440614,-191.68647548,0.000106,2]